bitfinex-derivatives/quotes_ETHF0:USTF0_20240923
["timestamp","ask_amount","ask_price","bid_price","bid_amount"]
[1727052505019,17.44230412,2591.2,2590.2,0.374]
[1727052505213,5.41861412,2590.5,2590.2,0.374]
[1727052505413,5.41861412,2590.5,2590.2,0.76005]
[1727052505818,5.41861412,2590.5,2590.2,0.374]
[1727052506011,3.2078,2591.0,2590.5,0.38599]
[1727052506216,3.2078,2591.0,2590.2,3.5818]
[1727052506217,5.41861412,2590.4,2590.2,3.5818]
[1727052506415,5.41861412,2590.4,2590.2,3.96784]
[1727052506816,5.41861412,2590.4,2590.3,0.38603]
[1727052507121,3.2078,2590.7,2590.5,0.38599]
[1727052507317,5.41861412,2590.6,2590.5,0.38599]
[1727052507524,5.41861412,2590.6,2590.5,0.386]
[1727052507820,0.3747,2590.9,2590.6,0.38597]
[1727052508012,5.41861412,2590.8,2590.5,2.92]
[1727052508212,5.41861412,2590.8,2590.5,6.1278]
[1727052508413,6.46061412,2590.8,2590.5,6.1278]
[1727052508615,6.46061412,2590.8,2590.7,0.38597]
[1727052508819,1.042,2590.8,2590.7,0.38597]
[1727052509016,0.3747,2591.7,2590.5,7.09278]
[1727052509017,1.042,2591.2,2590.5,7.09278]
[1727052509210,1.042,2591.2,2590.4,0.96504]
[1727052509211,1.42786,2591.5,2591.1,3.30591]
[1727052509411,1.42786,2591.5,2591.4,0.38587]
[1727052509412,1.042,2591.5,2591.4,0.38587]
[1727052509724,1.042,2591.5,2591.4,3.30587]
[1727052510122,1.042,2591.5,2591.4,13.16507]
[1727052510421,1.042,2591.9,2591.4,12.1278]
[1727052510610,5.41861412,2591.8,2591.4,6.1278]
[1727052510920,9.27650412,2591.9,2591.4,6.1278]
[1727052511122,0.22455,2591.9,2591.8,3.30581]
[1727052511318,3.2078,2593.0,2592.6,0.38568]
[1727052511512,5.41861412,2592.8,2592.5,2.92]
[1727052511716,5.41861412,2592.8,2592.7,0.38567]
[1727052511924,6.02369,2593.0,2592.8,0.38565]
[1727052511925,3.2078,2593.0,2592.8,0.38565]
[1727052512119,8.62641412,2593.0,2592.6,5.241]
[1727052512425,0.38558,2593.4,2592.9,8.3704768]
[1727052512615,5.41861412,2593.1,2593.0,0.38563]
[1727052512811,5.41861412,2593.0,2592.6,5.0648368]
[1727052513123,5.41861412,2592.7,2592.4,0.38571]
[1727052513328,5.41861412,2592.6,2592.3,0.3832]
[1727052513620,5.41861412,2592.6,2592.4,0.38571]
[1727052513832,5.41861412,2592.6,2592.5,0.3857]
[1727052514021,0.3699,2593.1,2592.7,0.38566]
[1727052514224,5.41861412,2592.8,2592.7,0.38566]
[1727052515029,5.41861412,2592.8,2592.5,2.92]
[1727052515030,5.80427412,2592.8,2592.5,3.30569]
[1727052515327,8.62641412,2592.6,2592.1,2.92]
[1727052515528,3.2078,2592.6,2592.1,2.92]
[1727052515715,3.59345,2592.9,2592.5,0.38569]
[1727052516027,5.41861412,2592.3,2592.1,2.92]
[1727052516224,5.41861412,2592.2,2592.0,3.2078]
[1727052516526,5.41861412,2592.1,2592.0,3.2078]
[1727052517029,0.38579,2591.9,2591.5,0.38585]
[1727052517220,5.41861412,2591.7,2591.5,5.62585]
[1727052517418,1.49461412,2591.7,2591.6,5.137]
[1727052517718,3.9918,2593.6,2591.6,16.28262749]
[1727052517927,0.88261412,2593.1,2593.0,0.38563]
[1727052518221,0.88261412,2593.1,2592.6,3.3248]
[1727052518415,0.88261412,2593.1,2592.3,3.2078]
[1727052518416,2.81589,2593.1,2592.3,3.2078]
[1727052518614,2.81589,2593.1,2592.2,2.92]
[1727052518615,0.88261412,2592.5,2592.2,6.1278]
[1727052518821,0.88261412,2592.5,2592.4,0.38572]
[1727052519128,0.88261412,2592.5,2592.2,6.1278]
[1727052519321,0.88261412,2592.3,2592.1,0.4048]
[1727052519516,0.88261412,2592.2,2591.8,2.92]
[1727052519825,0.88261412,2591.9,2591.8,2.92]
[1727052520127,0.38585,2591.6,2591.2,0.3859]
[1727052520322,0.88261412,2591.2,2591.1,3.3059]
[1727052521114,3.69850412,2591.2,2591.0,3.2078]
[1727052521322,0.88261412,2591.1,2590.8,0.79075]
[1727052521521,0.88261412,2590.9,2590.8,0.4048]
[1727052521830,0.88261412,2590.9,2590.8,0.79076]
[1727052522128,3.69850412,2590.9,2590.7,3.30597]
[1727052522329,3.59369,2591.3,2590.8,0.38596]
[1727052522524,3.20178,2591.3,2590.8,0.38596]
[1727052522825,0.88261412,2590.9,2590.8,0.38596]
[1727052524135,3.2078,2591.5,2590.8,9.86]
[1727052524429,3.2078,2591.5,2591.0,3.30593]
[1727052524430,0.88261412,2591.1,2591.0,3.30593]
[1727052524622,6.02369,2591.5,2591.0,2.92]
[1727052524927,0.88261412,2591.1,2590.8,0.38595]
[1727052525126,0.88261412,2591.1,2590.9,0.38593]
[1727052526225,0.88261412,2591.1,2590.8,3.59374]
[1727052526419,0.88261412,2590.9,2590.8,3.59374]
[1727052526638,0.88261412,2590.9,2590.8,0.38594]
[1727052526831,3.69850412,2590.9,2590.8,0.38594]
[1727052527022,3.69850412,2590.9,2590.1,0.50761009]
[1727052527023,6.0,2590.9,2589.7,1.00970214]
[1727052527223,3.2078,2590.3,2589.3,6.1278]
[1727052527432,3.2078,2589.8,2589.3,2.92]
[1727052527624,3.2078,2589.8,2589.4,0.38616]
[1727052528023,0.38614,2589.6,2589.3,2.92]
[1727052528222,3.2078,2589.8,2589.0,0.38622]
[1727052528422,3.59395,2589.5,2589.0,0.38621]
[1727052528637,3.2078,2589.5,2589.0,8.00636456]
[1727052528822,0.96509,2590.3,2589.2,0.38619]
[1727052528823,0.38613,2589.7,2589.2,0.38619]
[1727052529130,0.38614,2589.6,2589.1,0.3862]
[1727052529436,0.38614,2589.6,2589.0,8.00636456]
[1727052529632,3.2078,2590.1,2589.5,2.92]
[1727052529931,0.38595,2590.9,2590.0,2.92]
[1727052530132,0.38596,2590.9,2590.5,2.92]
[1727052530338,0.38596,2590.8,2590.5,2.92]
[1727052530736,3.2078,2591.2,2590.5,2.92]
[1727052531031,0.38596,2590.8,2590.5,3.2966]
[1727052531429,4.24598,2590.7,2590.3,0.38603]
[1727052531640,0.38598,2590.7,2590.3,0.38602]
[1727052531929,3.2078,2591.2,2590.6,0.38598]
[1727052532126,0.38596,2590.8,2590.5,6.1278]
[1727052532334,0.38599,2590.6,2590.5,2.92]
[1727052532527,0.38601,2590.5,2590.1,3.68265]
[1727052532725,0.386,2590.5,2590.2,3.2078]
[1727052532926,0.38601,2590.5,2590.2,3.2078]
[1727052533122,0.38601,2590.5,2590.1,3.68266]
[1727052533421,0.3886,2590.8,2590.1,3.68266]
[1727052533620,0.77456,2590.8,2590.4,0.38601]
[1727052533835,0.38596,2590.8,2590.3,0.38602]
[1727052534147,0.38597,2590.7,2590.2,0.38604]
[1727052534334,0.9649,2590.8,2590.1,0.3766]
[1727052534627,0.96506,2590.4,2589.9,3.2078]
[1727052534829,0.96506,2590.4,2589.6,0.38612]
[1727052534830,0.38606,2590.1,2589.6,0.38612]
[1727052535032,3.59386,2590.2,2589.6,3.2078]
[1727052535437,3.59386,2590.2,2589.8,0.3861]
[1727052535630,3.59386,2590.2,2589.6,3.2078]
[1727052535631,3.2078,2590.2,2589.6,3.2078]
[1727052535821,3.59385,2590.2,2589.6,3.2078]
[1727052536131,0.38607,2590.1,2589.8,0.38611]
[1727052536550,3.2078,2590.5,2589.8,2.92]
[1727052536731,4.1727,2590.8,2589.9,3.5982]
[1727052536948,4.1727,2590.8,2590.0,0.38607]
[1727052536949,0.38603,2590.3,2590.0,0.38607]
[1727052537334,0.38602,2590.4,2590.0,0.38607]
[1727052538134,0.96494,2590.7,2590.1,0.38606]
[1727052538331,3.2078,2590.8,2590.0,3.2078]
[1727052538629,3.2078,2590.1,2589.5,3.2078]
[1727052538834,0.7804,2591.0,2589.5,3.2078]
[1727052538835,3.2078,2590.4,2589.6,3.5982]
[1727052539025,3.59383,2590.4,2590.0,0.38607]
[1727052539426,3.8608,2590.3,2589.7,0.3781]
[1727052539627,3.2078,2590.4,2590.0,3.2078]
[1727052540038,3.2078,2590.4,2590.3,0.38603]
[1727052540728,3.2078,2591.3,2590.3,9.8608]
[1727052541029,2.51293538,2592.3,2590.3,9.8608]
[1727052541030,0.784,2592.8,2591.4,3.2078]
[1727052541227,3.2078,2593.2,2591.9,3.2078]
[1727052541434,0.96423,2592.6,2591.6,3.2078]
[1727052541627,0.38582,2591.7,2591.6,3.2078]
[1727052541831,0.96446,2592.0,2591.1,3.2078]
[1727052542135,0.38584,2591.6,2591.1,3.2078]
[1727052542349,4.17212,2592.4,2591.1,3.2078]
[1727052542350,0.96435,2592.3,2591.1,3.2078]
[1727052542527,4.17211,2592.4,2591.1,3.2078]
[1727052542730,0.96448,2592.0,2591.1,3.2078]
[1727052542928,0.38586,2591.5,2591.1,3.2078]
[1727052543429,4.24506,2591.5,2591.1,3.2078]
[1727052544148,0.3859,2591.2,2591.1,3.2078]
[1727052544432,0.3859,2591.2,2590.7,3.2078]
[1727052544433,3.8592,2591.2,2590.7,3.2078]
[1727052544635,3.2078,2592.0,2591.1,0.3859]
[1727052544936,0.3721,2592.5,2591.4,3.59366]
[1727052544937,0.38578,2592.1,2591.4,3.59366]
[1727052545237,0.088,2592.3,2591.7,3.2078]
[1727052545441,0.7571,2592.5,2592.0,3.2078]
[1727052545845,3.8576,2592.4,2592.0,3.2078]
[1727052546041,0.38575,2592.2,2592.0,3.2078]
[1727052546539,3.8576,2592.2,2592.0,3.2078]
[1727052546937,4.24335,2592.2,2592.0,3.2078]
[1727052547245,3.8576,2592.1,2591.6,3.2078]
[1727052547428,0.38581,2591.8,2591.6,3.2078]
[1727052547736,0.3858,2591.9,2591.6,3.2078]
[1727052548041,4.71218305,2592.4,2591.6,3.2078]
[1727052548234,0.38582,2591.8,2591.6,3.2078]
[1727052548437,0.38582,2591.8,2591.7,3.2078]
[1727052548641,3.8584,2591.8,2591.6,3.2078]
[1727052548831,3.8584,2591.7,2591.6,3.2078]
[1727052549036,0.38579,2592.0,2591.6,3.2078]
[1727052549334,0.96438,2592.2,2591.6,3.2078]
[1727052549335,3.8584,2591.9,2591.6,3.2078]
[1727052549537,0.38576,2592.2,2591.6,3.2078]
[1727052549749,0.38574,2592.3,2591.6,3.59364]
[1727052550037,3.2078,2592.4,2591.6,3.59364]
[1727052550038,0.38578,2592.0,2591.6,3.2078]
[1727052550234,3.8584,2591.9,2591.3,3.2078]
[1727052550436,0.38583,2591.7,2591.3,3.2078]
[1727052550948,4.71218305,2592.4,2591.3,3.59368]
[1727052551147,0.38576,2592.2,2591.6,3.2078]
[1727052551743,3.2078,2592.4,2591.6,3.2078]
[1727052551943,0.38579,2592.0,2591.6,3.2078]
[1727052552744,3.2078,2592.4,2591.6,3.2078]
[1727052552937,3.2078,2592.4,2591.3,3.2078]
[1727052552938,3.8584,2592.3,2591.3,3.2078]
[1727052553144,0.38586,2591.5,2591.3,3.2078]
[1727052553337,4.71218305,2592.4,2591.3,3.2078]
[1727052553338,0.38587,2591.4,2591.3,3.2078]
[1727052553844,0.38588,2591.3,2591.0,3.2078]
[1727052554044,0.4641,2591.8,2591.0,3.59373]
[1727052554243,0.38584,2591.6,2591.2,3.2078]
[1727052554744,0.96439,2592.2,2591.3,0.38587]
[1727052554935,0.96439,2592.2,2591.5,3.2078]
[1727052555131,0.38581,2591.8,2591.5,3.2078]
[1727052556141,0.38573,2592.3,2591.5,6.1278]
[1727052556341,0.38573,2592.3,2591.7,3.59361]
[1727052556549,0.38574,2592.3,2592.0,3.2078]
[1727052556744,0.38572,2592.5,2592.0,3.2078]
[1727052556948,0.38572,2592.5,2592.0,3.59357]
[1727052557635,0.38572,2592.5,2592.0,3.2078]
[1727052558139,0.38573,2592.4,2592.0,3.2078]
[1727052558341,0.38571,2592.5,2592.0,3.59358]
[1727052558541,0.96407,2593.1,2592.3,3.2078]
[1727052558743,1.97678305,2593.2,2592.4,0.4037]
[1727052558744,0.38568,2592.7,2592.4,0.4037]
[1727052558950,0.4724,2593.2,2592.4,0.4037]
[1727052559144,1.90338305,2593.4,2592.6,3.2078]
[1727052559145,0.96397,2593.3,2592.6,3.2078]
[1727052559351,0.38566,2592.9,2592.6,3.2078]
[1727052559549,0.399,2593.4,2592.6,3.2078]
[1727052559749,0.38561,2593.1,2592.7,0.38567]
[1727052559948,0.38561,2593.2,2592.7,0.38567]
[1727052560252,0.38561,2593.2,2592.8,3.2078]
[1727052560638,1.50438305,2593.1,2592.8,3.2078]
[1727052560838,1.50438305,2593.1,2592.8,3.59346]
[1727052561055,1.50438305,2593.1,2592.8,3.2078]
[1727052561242,1.50438305,2593.3,2592.8,3.2078]
[1727052561447,1.88999305,2593.2,2592.8,3.2078]
[1727052561646,1.50438305,2593.2,2592.8,3.2078]
[1727052562153,2.46846305,2593.0,2592.5,3.5886]
[1727052562351,0.38568,2592.7,2592.5,3.5886]
[1727052563356,0.38569,2592.6,2592.5,3.2078]
[1727052563749,4.24329,2592.6,2592.5,3.2078]
[1727052563944,0.3857,2592.5,2592.4,0.4037]
[1727052564448,1.50438305,2592.5,2592.4,0.4037]
[1727052564645,1.50438305,2592.6,2592.4,0.4037]
[1727052564845,1.89008305,2592.5,2592.4,0.4037]
[1727052565051,1.98869459,2592.6,2592.4,0.4037]
[1727052565247,1.89022836,2592.7,2592.5,3.2078]
[1727052565447,1.50454836,2592.8,2592.5,3.2078]
[1727052565845,1.50454836,2592.8,2592.5,3.5935]
[1727052566059,1.89019836,2592.9,2592.5,3.5935]
[1727052566355,1.50454836,2592.9,2592.8,3.2078]
[1727052566550,1.89016836,2593.1,2592.8,3.2078]
[1727052567148,0.38564,2593.0,2592.8,3.2078]
[1727052567351,1.89016836,2593.1,2592.8,3.2078]
[1727052567550,0.38562,2593.1,2592.8,3.2078]
[1727052567745,0.38564,2592.9,2592.8,3.2078]
[1727052567945,0.38566,2592.8,2592.5,3.2078]
[1727052568152,3.2078,2593.4,2592.5,3.2078]
[1727052568346,0.3857,2592.5,2592.4,0.4037]
[1727052568550,0.38568,2592.7,2592.4,3.6115]
[1727052568960,0.38567,2592.8,2592.4,3.99722]
[1727052569160,0.96393,2593.4,2592.7,3.59347]
[1727052569551,0.96397,2593.3,2592.7,3.2078]
[1727052569857,0.38565,2592.9,2592.7,3.2078]
[1727052570254,0.38566,2592.8,2592.7,3.2078]
[1727052570455,0.38565,2592.9,2592.7,3.2078]
[1727052571254,0.38563,2593.1,2592.7,3.2078]
[1727052571449,0.38563,2593.1,2592.4,0.4037]
[1727052571450,0.38559,2593.3,2593.0,3.2078]
[1727052571656,0.38561,2593.2,2593.0,3.2078]
[1727052571964,0.38559,2593.3,2593.1,0.3686]
[1727052572158,3.856,2593.3,2593.1,0.3686]
[1727052572468,4.2416,2593.2,2593.1,0.3686]
[1727052572662,0.3856,2593.2,2593.1,0.3686]
[1727052572861,4.2416,2593.2,2593.1,0.3686]
[1727052573163,3.856,2593.2,2593.1,0.3686]
[1727052573365,0.96385,2593.7,2593.1,0.3686]
[1727052573366,0.96371,2594.0,2593.1,4.2246]
[1727052573568,0.96371,2594.0,2593.5,3.2078]
[1727052573873,0.38553,2593.7,2593.5,3.2078]
[1727052574062,3.2078,2594.1,2593.5,3.2078]
[1727052574257,0.38552,2593.8,2593.5,3.2078]
[1727052574459,0.96356,2594.4,2593.5,3.2078]
[1727052574660,3.2078,2594.5,2594.1,3.2078]
[1727052574967,0.38541,2594.5,2594.1,3.2078]
[1727052575153,0.96334,2595.0,2594.2,0.3858]
[1727052575354,0.38543,2594.4,2594.2,0.3858]
[1727052575563,0.38544,2594.3,2594.2,0.3858]
[1727052575762,3.2078,2594.3,2593.7,3.2078]
[1727052575957,0.38551,2593.8,2593.7,3.2078]
[1727052576166,0.38549,2594.0,2593.7,3.2078]
[1727052576562,1.33439,2594.6,2593.7,3.2078]
[1727052576776,0.38547,2594.1,2593.7,3.2078]
[1727052577065,0.38545,2594.2,2594.0,3.2078]
[1727052577252,4.17119,2594.9,2594.1,0.3975]
[1727052577458,0.38545,2594.2,2594.1,0.3975]
[1727052577658,0.38543,2594.4,2594.1,0.3975]
[1727052577864,0.38544,2594.3,2594.1,0.3975]
[1727052578064,0.38545,2594.2,2594.1,0.3975]
[1727052579366,0.3855,2593.9,2593.6,3.2078]
[1727052579560,0.38551,2593.8,2593.6,3.6111]
[1727052579759,0.38551,2593.8,2593.5,2.92]
[1727052579760,0.38557,2593.4,2593.3,3.2078]
[1727052579961,0.96375,2593.9,2593.3,3.2078]
[1727052580259,0.38553,2593.7,2593.3,3.59338]
[1727052580562,10.82234836,2594.5,2593.6,3.2078]
[1727052580563,0.38551,2593.9,2593.6,3.2078]
[1727052580862,0.38553,2593.7,2593.6,3.2078]
[1727052581370,0.38553,2593.7,2593.0,0.3971]
[1727052581371,0.38561,2593.1,2593.0,3.2078]
[1727052581867,0.38561,2593.2,2593.0,3.2078]
[1727052582260,3.2078,2593.8,2593.0,3.2078]
[1727052582261,4.17159,2593.8,2593.0,3.2078]
[1727052582460,0.38558,2593.4,2593.0,3.97193]
[1727052582664,1.50454836,2593.2,2593.0,3.5863]
[1727052582858,1.50454836,2593.3,2593.0,3.97192]
[1727052583066,1.89013836,2593.3,2593.0,3.5863]
[1727052583371,1.50454836,2593.1,2593.0,3.5863]
[1727052583761,0.38561,2593.1,2593.0,3.2078]
[1727052583962,0.38563,2593.0,2592.9,0.4033]
[1727052584760,13.33383538,2593.0,2592.4,3.2078]
[1727052584961,0.3857,2592.5,2592.4,3.2078]
[1727052585769,2.5081865,2592.6,2592.4,3.59352]
[1727052585970,2.00650363,2592.5,2592.4,3.2078]
[1727052586267,1.39450363,2592.6,2592.5,0.3857]
[1727052586471,1.50471767,2592.6,2592.4,7.0654]
[1727052586675,1.50471767,2592.6,2592.5,4.2433]
[1727052587169,1.50471767,2592.7,2592.5,3.8576]
[1727052587373,1.50471767,2592.6,2592.5,4.24249]
[1727052587580,0.9639,2593.5,2592.7,0.38566]
[1727052587581,2.5081865,2593.1,2592.7,0.38566]
[1727052587872,2.8937965,2593.2,2593.0,3.2078]
[1727052588272,2.8937965,2593.1,2593.0,3.2078]
[1727052588473,2.50829726,2593.1,2593.0,3.2078]
[1727052588675,2.89390726,2593.1,2593.0,3.2078]
[1727052589008,2.50829726,2593.2,2593.0,3.2078]
[1727052589578,2.50829726,2593.1,2593.0,3.2078]
[1727052589874,2.89389726,2593.2,2593.0,3.2078]
[1727052590279,2.50829726,2593.2,2593.0,3.2078]
[1727052590472,2.50829726,2593.2,2593.0,3.59343]
[1727052590668,3.01552245,2593.5,2593.0,3.59343]
[1727052590669,3.01552245,2593.5,2593.0,3.2078]
[1727052590976,0.38558,2593.4,2593.0,3.2078]
[1727052591665,0.96385,2593.7,2593.3,3.2078]
[1727052591868,0.96385,2593.7,2593.0,3.59342]
[1727052592064,0.96385,2593.7,2593.3,3.2078]
[1727052592292,0.38556,2593.5,2593.3,3.2078]
[1727052592667,0.38555,2593.6,2593.3,3.2078]
[1727052592870,0.38556,2593.5,2593.3,3.2078]
[1727052593075,0.38555,2593.6,2593.3,3.2078]
[1727052593575,0.38562,2593.1,2593.0,3.2078]
[1727052593973,0.38562,2593.1,2592.8,0.7646]
[1727052594189,1.35276,2593.4,2592.7,3.2078]
[1727052594377,0.38566,2592.8,2592.7,3.2078]
[1727052594584,1.34982,2592.8,2592.7,3.2078]
[1727052594878,1.34982,2592.8,2591.6,2.92]
[1727052594879,0.38574,2592.3,2591.8,0.3858]
[1727052595077,10.82096,2592.8,2592.2,3.2078]
[1727052595078,0.38573,2592.4,2592.2,3.2078]
[1727052595378,0.7717,2592.7,2592.2,3.2078]
[1727052595589,0.38572,2592.4,2592.2,3.2078]
[1727052595769,0.38573,2592.3,2592.2,3.2078]
[1727052596267,0.38573,2592.4,2592.2,3.2078]
[1727052596870,0.7717,2592.7,2592.2,3.2078]
[1727052597275,0.38571,2592.5,2592.2,3.2078]
[1727052597473,0.7717,2592.7,2592.2,3.2078]
[1727052597778,3.27999726,2592.7,2592.2,3.2078]
[1727052597970,0.38573,2592.4,2592.2,3.2078]
[1727052599377,0.38571,2592.5,2592.2,3.2078]
[1727052599877,2.89399726,2592.6,2592.2,3.2078]
[1727052600176,2.50829726,2592.7,2592.2,3.2078]
[1727052600375,0.38572,2592.5,2592.0,2.92]
[1727052600574,2.89399726,2592.6,2592.2,3.2078]
[1727052601077,2.89399726,2592.6,2592.5,3.2078]
[1727052601276,2.50829726,2592.6,2592.5,3.2078]
[1727052601477,2.50829726,2592.7,2592.5,3.2078]
[1727052601689,2.50829726,2592.8,2592.5,3.2078]
[1727052601979,2.50829726,2592.6,2592.5,3.2078]
[1727052602177,2.89398726,2592.6,2592.5,3.2078]
[1727052602381,6.75158726,2592.6,2592.5,3.2078]
[1727052602676,13.72504486,2592.6,2592.5,3.2078]
[1727052602981,13.72504486,2592.6,2592.1,3.2078]
[1727052602982,0.38576,2592.2,2592.1,3.2078]
[1727052603274,0.38575,2592.2,2591.8,3.2078]
[1727052603476,2.5178217,2592.1,2591.7,0.38582]
[1727052603684,2.5178217,2592.1,2591.5,2.59]
[1727052603685,2.5178217,2592.1,2592.0,3.2078]
[1727052604181,2.5178217,2592.4,2592.0,7.0654]
[1727052604483,2.5178217,2592.3,2592.0,3.2078]
[1727052604687,2.9035617,2592.3,2592.0,3.2078]
[1727052604870,0.38576,2592.1,2592.0,3.2078]
[1727052605276,4.24336,2592.1,2592.0,3.2078]
[1727052605770,6.7611817,2592.1,2592.0,3.2078]
[1727052605975,10.24336,2592.1,2592.0,3.2078]
[1727052606872,11.20778,2592.1,2592.0,3.2078]
[1727052607184,9.8576,2592.1,2591.4,3.98767]
[1727052607380,0.96438,2592.2,2591.7,3.2078]
[1727052607777,0.7809,2592.3,2591.7,3.2078]
[1727052607978,0.3792,2592.4,2591.9,2.59]
[1727052608283,5.7256217,2592.6,2592.1,3.2078]
[1727052608284,3.2078,2592.6,2592.1,3.2078]
[1727052608482,0.38571,2592.5,2592.1,3.2078]
[1727052608781,3.2078,2592.6,2592.1,3.2078]
[1727052608985,0.38568,2592.7,2592.2,2.97574]
[1727052609282,0.38564,2593.0,2592.4,3.2078]
[1727052609477,0.96401,2593.2,2592.7,3.2078]
[1727052609679,0.38567,2592.8,2592.5,0.4036]
[1727052609882,6.1023217,2593.3,2592.5,0.4036]
[1727052609883,0.38567,2592.7,2592.5,0.4036]
[1727052610684,0.38567,2592.7,2592.6,3.2078]
[1727052610996,0.76229,2593.3,2592.7,0.38566]
[1727052611172,0.76229,2593.3,2593.1,3.2078]
[1727052611377,0.3856,2593.2,2593.1,3.2078]
[1727052611578,0.38562,2593.1,2592.8,3.2078]
[1727052611981,0.3856,2593.2,2592.8,3.2078]
[1727052612188,0.38562,2593.1,2592.8,3.2078]
[1727052612485,0.76229,2593.3,2592.8,3.2078]
[1727052612684,0.3767,2593.3,2592.8,3.2078]
[1727052612879,0.3767,2593.3,2593.1,3.2078]
[1727052613079,0.7941,2593.5,2593.1,3.2078]
[1727052613080,0.38558,2593.4,2593.1,3.2078]
[1727052613281,0.3704,2593.7,2593.1,3.2078]
[1727052613483,0.3704,2593.7,2592.8,2.59]
[1727052613484,0.3704,2593.7,2593.4,3.2078]
[1727052613682,4.1715,2594.1,2593.4,3.2078]
[1727052613889,0.38551,2593.8,2593.4,3.2078]
[1727052614197,3.2078,2594.1,2593.4,3.2078]
[1727052614375,2.8897217,2594.2,2593.6,3.2078]
[1727052614578,0.38552,2593.8,2593.6,3.2078]
[1727052614775,0.3719,2594.2,2593.6,3.2078]
[1727052614990,0.3719,2594.2,2593.9,3.2078]
[1727052614991,0.38547,2594.1,2593.9,3.2078]
[1727052615186,0.75736,2594.2,2593.9,3.2078]
[1727052615487,0.75584,2594.3,2593.9,3.2078]
[1727052615684,6.5249217,2594.8,2593.7,0.38552]
[1727052615876,6.5249217,2594.8,2593.9,3.2078]
[1727052615877,0.38543,2594.4,2593.9,3.2078]
[1727052616077,1.03469343,2594.7,2593.8,0.3887]
[1727052616277,1.03469343,2594.7,2593.6,3.2078]
[1727052616278,2.01056428,2594.5,2593.6,3.2078]
[1727052616487,0.38542,2594.4,2593.9,3.2078]
[1727052616699,0.38544,2594.3,2593.9,3.2078]
[1727052617491,0.96349,2594.6,2593.9,3.2078]
[1727052617492,0.38544,2594.4,2593.9,3.2078]
[1727052617885,0.38544,2594.3,2593.9,3.2078]
[1727052618186,0.96349,2594.6,2593.9,3.2078]
[1727052618400,0.38543,2594.4,2593.9,3.2078]
[1727052618581,0.38544,2594.3,2593.9,3.6014]
[1727052619188,0.96349,2594.6,2593.9,3.6014]
[1727052619392,0.38548,2594.0,2593.9,3.2078]
[1727052619884,4.24068,2594.0,2593.9,3.2078]
[1727052620392,10.24068,2594.0,2593.9,3.2078]
[1727052620885,0.38552,2593.8,2593.4,3.2078]
[1727052621086,2.51162335,2593.6,2593.4,3.2078]
[1727052621487,2.51162335,2593.5,2593.4,3.2078]
[1727052621692,2.51162335,2593.6,2593.4,3.2078]
[1727052622091,2.51162335,2593.6,2593.5,4.24156]
[1727052622387,2.51162335,2593.8,2593.6,0.38554]
[1727052622592,3.01394802,2594.1,2593.7,3.2078]
[1727052622593,3.01394802,2594.0,2593.7,3.2078]
[1727052622983,2.51188436,2593.8,2593.7,3.2078]
[1727052623385,3.01394802,2594.0,2593.7,3.2078]
[1727052624208,3.01394802,2593.9,2593.7,3.2078]
[1727052624394,2.51256317,2593.8,2593.7,3.2078]
[1727052624699,2.00987762,2593.8,2593.7,3.59333]
[1727052625086,2.00987762,2593.9,2593.8,0.38551]
[1727052625591,2.51256317,2594.0,2593.7,3.59332]
[1727052625794,2.0098321,2593.8,2593.7,3.59332]
[1727052626096,0.96355,2594.5,2593.7,3.59332]
[1727052626097,2.40214802,2594.9,2594.8,0.38536]
[1727052626288,3.51810953,2595.4,2594.8,3.2078]
[1727052626484,10.06281411,2595.6,2595.1,3.2078]
[1727052626485,4.48122953,2595.6,2595.1,3.2078]
[1727052626785,0.3853,2595.3,2595.1,3.2078]
[1727052626985,0.3853,2595.2,2595.1,3.2078]
[1727052627182,0.3853,2595.3,2595.1,3.2078]
[1727052627382,4.02144729,2595.8,2595.1,3.2078]
[1727052627383,1.03387332,2595.5,2595.2,0.3853]
[1727052627595,1.03387332,2595.5,2594.9,2.59]
[1727052627596,1.03387332,2595.5,2595.4,3.2078]
[1727052627988,1.03387332,2595.5,2594.9,3.2078]
[1727052627989,10.88667332,2595.5,2594.9,3.2078]
[1727052628189,0.38534,2595.0,2594.9,3.2078]
[1727052628493,4.6139,2595.4,2594.9,3.2078]
[1727052628494,1.1526,2595.4,2594.9,3.2078]
[1727052628695,1.1526,2595.4,2594.3,2.59]
[1727052628696,0.38532,2595.1,2594.6,3.2078]
[1727052628992,0.3853,2595.3,2594.9,3.2078]
[1727052629293,0.38529,2595.3,2594.9,3.2078]
[1727052629592,0.38532,2595.1,2594.9,3.2078]
[1727052630091,0.38533,2595.0,2594.9,3.2078]
[1727052630293,0.38533,2595.1,2594.9,3.2078]
[1727052631199,2.11579,2595.4,2594.9,3.2078]
[1727052631384,0.38533,2595.1,2594.9,3.2078]
[1727052631585,1.1526,2595.4,2594.9,3.2078]
[1727052631794,0.3853,2595.3,2594.9,3.2078]
[1727052632592,0.38529,2595.3,2594.9,3.2078]
[1727052632799,1.1526,2595.4,2594.9,3.2078]
[1727052632999,0.38532,2595.1,2594.9,3.2078]
[1727052633195,0.38531,2595.2,2594.9,3.2078]
[1727052634089,0.38529,2595.3,2594.9,3.2078]
[1727052634798,0.3853,2595.2,2594.9,3.2078]
[1727052635597,1.1526,2595.4,2594.9,3.2078]
[1727052635897,0.38531,2595.2,2594.9,3.2078]
[1727052636395,0.38533,2595.0,2594.9,3.2078]
[1727052636590,0.9633,2595.1,2594.6,3.2078]
[1727052636786,0.9633,2595.1,2594.0,2.59]
[1727052636787,0.38537,2594.8,2594.2,3.2078]
[1727052636986,0.96323,2595.3,2594.5,3.2078]